Workbook

Sheet calculoL
B2: Cliente | C2: MIGUEL ANGEL HERNANDEZ
B3: Ubicación | C3: 55 PONINETE 32323-12
B4: Fecha: | C4: =TODAY() -> 2025-06-22 | D4: Elaboró | E4: ARQ. MIGUEL ANGEL HERNANDEZ CASTILLO
B5: Medidas Exteriores de la Cisterna
B6: 2 | C6: ancho | D6: 2 | E6: largo | F6: 1.7 | G6: altura | H6: =generadorL!E4 -> 3.3235 | I6: m3 de agua
B10: Siguenos en nuestras redes sociales para nuevos videos
G11: studio.digital.pue@gmail.com

Sheet impresiónL
A2: Cliente | B2: =calculoL!C2 -> MIGUEL ANGEL HERNANDEZ | F2: fecha
A3: Ubicación | B3: =calculoL!C3 -> 55 PONINETE 32323-12 | F3: =calculoL!C4 -> 2025-06-22
A4: Elaboró | B4: =calculoL!E4 -> ARQ. MIGUEL ANGEL HERNANDEZ CASTILLO | E4: CAP. CIST. M3 | F4: =calculoL!H6 -> 3.3235
A5: PRESUPUESTO DE CONSTRUCCION DE CISTERNA
A6: CLAVE | B6: DESCRIPCION | C6: U. | D6: CANT. | E6: P.U. | F6: TOTAL
A7: =generadorL!A6 -> EXC01 | B7: =generadorL!B6 -> EXCAVACION EN TERRENO TIPO 2 POR MEDIOS MECANICOS(RETROEXCAVADORA) HASTA UNA PROFUNDIDAD DE 2.5 M | C7: =generadorL!C6 -> M3 | D7: =generadorL!D6 -> 6.8 | E7: 120 | F7: =E7*D7 -> 816
A8: =generadorL!A7 -> AFINE | B8: =generadorL!B7 -> AFINE DE EXCAVACION EN FONDO Y PAREDES LATERALES | C8: =generadorL!C7 -> M3 | D8: =generadorL!D7 -> 0.96 | E8: 205 | F8: 196.8
A9: =generadorL!A8 -> ACA001 | B9: =generadorL!B8 -> ACARREO DE MATERIAL PRODUCTO DE EXCAVACIONES SOBRE CAMION DE VOLTEO CAPACIDAD 6 M3, INCUYE CARGA MECANICA Y ABUNDAMIENTO | C9: =generadorL!C8 -> M3 | D9: =generadorL!D8 -> 10.2 | E9: 130 | F9: 1326
A10: PLANT | B10: =generadorL!B9 -> PLATILLA DE CONCRETO SIMPLE F?C= 100 KG /CM2 ESPESOR PROMEDIO DE 5 CMS | C10: =generadorL!C9 -> M2 | D10: =generadorL!D9 -> 4 | E10: 135 | F10: 540
A11: =generadorL!A10 -> MALLA | B11: =generadorL!B10 -> LOSA O FIRME EN CIMENTACION A BASE DE MALLA 10-10/10-10 Y CONCRETO F'C= 200 KG/CM2 EN UN ESPESOR PROMEDIO DE 10 CMS | C11: =generadorL!C10 -> M2 | D11: =generadorL!D10 -> 4 | E11: 478 | F11: 1912
A12: CDD | B12: =generadorL!B11 -> DALA O CADENAS DE DESPLANTE PARA MUROS DE 15X20, EN ARMEX Y CONCRETO F'C=250 KG/CM2 | C12: =generadorL!C11 -> M | D12: =generadorL!D11 -> 8 | E12: 275 | F12: 2200
A13: =generadorL!A12 -> CAS01 | B13: =generadorL!B12 -> CASTILLO DE ARMEX 15X15 Y CONCRETO F'C= 200 KF/CM2 | C13: =generadorL!C12 -> M | D13: =generadorL!D12 -> 5.6 | E13: 300 | F13: 1680
A14: =generadorL!A13 -> MUR | B14: =generadorL!B13 -> MUROS DE BLOCK O DE LADRILLO ROJO COMUN | C14: =generadorL!C13 -> M2 | D14: =generadorL!D13 -> 8 | E14: 350 | F14: 2800
A15: =generadorL!A14 -> REPE | B15: =generadorL!B14 -> REPELLADO DE MURO CON MORTERO CEMENTO ARENA PROP 1:4 EN 2 CMS PROM | C15: =generadorL!C14 -> M2 | D15: =generadorL!D14 -> 8 | E15: 167 | F15: 1336
A16: =generadorL!A15 -> CHAFAN | B16: =generadorL!B15 -> CHAFLAN DE CONCRETO DE 5 CMS EN VERTICES DE PISO Y MUROS | C16: =generadorL!C15 -> ML | D16: =generadorL!D15 -> 13.6 | E16: 55 | F16: 748
A17: =generadorL!A16 -> PULI | B17: =generadorL!B16 -> PULIDO DE CEMENTO SOBRE REPELLA EN MUROS | C17: =generadorL!C16 -> M2 | D17: =generadorL!D16 -> 8 | E17: 217 | F17: 1736
A18: =generadorL!A17 -> LOSA | B18: =generadorL!B17 -> ELABORACION DE LOSA A BASE DE VIGUETA Y BOVEDILLA DE 16 CMS DE PERALTE Y REFORZADA CON MALLA 10-10/10-10 Y UNA CAPA DE CAPA DE COMPRESION DE 5 CMS EN CONCRETO F'C= 200 KG/CM2 | C18: =generadorL!C17 -> M2 | D18: =generadorL!D17 -> 4 | E18: 1100 | F18: 4400
A19: =generadorL!A18 -> LIM F | B19: =generadorL!B18 -> LIMPIEZA FINAL DEL AREA DE TRANAJO RETIRANDO MATERIAL SOBRANTE O ESCOMBROS | C19: =generadorL!C18 -> m3 | D19: =generadorL!D18 -> 0.8 | E19: 450 | F19: 360
E20: SUMA | F20: =SUM(F7:F19) -> 20050.8
A22: NOTAS: Se requiere un 30% de anticipo para iniciar los trabajos, el resto se dividira conra avance de los trabajos. | E22: Atentamente

Sheet generadorL
A1: CISTERNA DE LADRILLO O BLOCK
B2: DATOS BASICOS
B3: MEDIDAS EXTERIORES LARGO | C3: =calculoL!D6 -> 2 | D3: ANCHO | E3: =calculoL!B6 -> 2 | F3: PRFO. | G3: =calculoL!F6 -> 1.7 | H3: TOTAL M3 | I3: =G3*E3*C3 -> 6.8
C4: Capacidad real | E4: =((C3-0.3)*(E3-0.3)*(G3-0.55)) -> 3.3235 | F4: CON MEDIDAS INTERIORES
A5: CLAVE | B5: DESCRIPCION | C5: U | D5: CANT. T | E5: LARGO | F5: ANCHO | G5: ALTO | H5: PZA | I5: SUB TOTAL
A6: EXC01 | B6: EXCAVACION EN TERRENO TIPO 2 POR MEDIOS MECANICOS(RETROEXCAVADORA) HASTA UNA PROFUNDIDAD DE 2.5 M | C6: M3 | D6: =I6 -> 6.8 | E6: =$C$3 -> 2 | F6: =$E$3 -> 2 | G6: =G3 -> 1.7 | I6: =E6*F6*G6 -> 6.8
A7: AFINE | B7: AFINE DE EXCAVACION EN FONDO Y PAREDES LATERALES | C7: M3 | D7: =((C3*E3)+D13)*0.08 -> 0.96
A8: ACA001 | B8: ACARREO DE MATERIAL PRODUCTO DE EXCAVACIONES SOBRE CAMION DE VOLTEO CAPACIDAD 6 M3, INCUYE CARGA MECANICA Y ABUNDAMIENTO | C8: M3 | D8: =D6*1.5 -> 10.2
A9: PLAN | B9: PLATILLA DE CONCRETO SIMPLE F?C= 100 KG /CM2 ESPESOR PROMEDIO DE 5 CMS | C9: M2 | D9: =I9 -> 4 | E9: =$C$3 -> 2 | F9: =$E$3 -> 2 | I9: =E9*F9 -> 4
A10: MALLA | B10: LOSA O FIRME EN CIMENTACION A BASE DE MALLA 10-10/10-10 Y CONCRETO F'C= 200 KG/CM2 EN UN ESPESOR PROMEDIO DE 10 CMS | C10: M2 | D10: =I10 -> 4 | E10: =$C$3 -> 2 | F10: =$E$3 -> 2 | I10: =E10*F10 -> 4
A11: CDD | B11: DALA O CADENAS DE DESPLANTE PARA MUROS DE 15X20, EN ARMEX Y CONCRETO F'C=250 KG/CM2 | C11: M | D11: =(C3*2)+(E3*2) -> 8
A12: CAS01 | B12: CASTILLO DE ARMEX 15X15 Y CONCRETO F'C= 200 KF/CM2 | C12: M | D12: =I12 -> 5.6 | G12: =G6-0.3 -> 1.4 | H12: 4 | I12: =H12*G12 -> 5.6
A13: MUR | B13: MUROS DE BLOCK O DE LADRILLO ROJO COMUN | C13: M2 | D13: =D11*(G12-0.4) -> 8
A14: REPE | B14: REPELLADO DE MURO CON MORTERO CEMENTO ARENA PROP 1:4 EN 2 CMS PROM | C14: M2 | D14: =D13 -> 8
A15: CHAFAN | B15: CHAFLAN DE CONCRETO DE 5 CMS EN VERTICES DE PISO Y MUROS | C15: ML | D15: =D11+D12 -> 13.6
A16: PULI | B16: PULIDO DE CEMENTO SOBRE REPELLA EN MUROS | C16: M2 | D16: =D14 -> 8
A17: LOSA | B17: ELABORACION DE LOSA A BASE DE VIGUETA Y BOVEDILLA DE 16 CMS DE PERALTE Y REFORZADA CON MALLA 10-10/10-10 Y UNA CAPA DE CAPA DE COMPRESION DE 5 CMS EN CONCRETO F'C= 200 KG/CM2 | C17: M2 | D17: =D9 -> 4
A18: LIM F | B18: LIMPIEZA FINAL DEL AREA DE TRANAJO RETIRANDO MATERIAL SOBRANTE O ESCOMBROS | C18: m3 | D18: =(D13*0.05)*2 -> 0.8

Sheet CISTERNA (hidden)
A1: CISTERNA DE CONCRETO ARMADO
B2: LARGO | C2: 2.1 | D2: ANCHO | E2: 1.5 | F2: PROFUNDIDA | H2: 2
A3: CLAVE | B3: ELEMENTO | C3: DATOS
C4: largo | D4: ancho | E4: GANCHOS | F4: ALTURA | G4: @ PARR. | H4: No. Acero A | I4: ML | J4: total acero A (kg) | K4: M2 CIMBRA | L4: M3 CONC. | M4: EXCAV. M3 | N4: PLANTILLA M2 | O4: AFINE FONDO Y MUROS M2 | P4: CARG Y ACA + ABUND M3
A5: BASE | B5: LOSA DE CIMENTACION | C5: =C2 -> 2.1 | D5: =E2 -> 1.5 | E5: 0.15 | F5: 0.25 | G5: 0.2 | H5: 3 | I5: =((((C5/G5)+1)*(C5+E5))+(((D5/G5)+1)*(D5+E5))) -> 39.9 | J5: =I5*(H5*H5/16) -> 22.44375 | L5: =C5*D5*F5 -> 0.7875 | M5: =C5*D5*F6 -> 6.3 | N5: =C5*D5 -> 3.15 | O5: =N5+((C5+D5+C5+D5)*F6) -> 17.55 | P5: =M5*1.5 -> 9.45
A6: MUROS | B6: MURO LARGO | C6: =C5 -> 2.1 | D6: 0.15 | F6: =H2 -> 2 | G6: 0.2 | H6: 3 | I6: =((C6/G6+1)*C6)+((F6/G6+1)*F6) -> 46.15 | J6: =(((H6*H6/16)*I6)*2)*2 -> 103.8375 | K6: =F6*C6*2 -> 8.4 | L6: =F6*D6*C6 -> 0.63
B7: MURO CORTO | C7: =D5 -> 1.5 | D7: 0.15 | F7: =F6 -> 2 | G7: 0.2 | H7: 3 | I7: =((C7/G7+1)*C7)+((F7/G7+1)*F7) -> 34.75 | J7: =(((H7*H7/16)*I7)*2)*2 -> 78.1875 | K7: =F7*C7*2 -> 6 | L7: =F7*D7*C7 -> 0.45
A8: LOSA | B8: LOSA DE CONCRETO ARMADO | C8: =C6 -> 2.1 | D8: =C7 -> 1.5 | E8: 0.07 | F8: 0.15 | G8: 0.2 | H8: 3 | I8: =((((C8/G8)+1)*(C8+E8))+(((D8/G8)+1)*(D8+E8))) -> 38.3 | J8: =I8*(H8*H8/16) -> 21.54375 | K8: =D8*C8 -> 3.15 | L8: =F8*D8*C8 -> 0.4725
J9: =SUM(J5:J8) -> 226.0125 | K9: =SUM(K6:K8) -> 17.55 | L9: =SUM(L5:L8) -> 2.34 | M9: =SUM(M5:M8) -> 6.3 | N9: =SUM(N5:N8) -> 3.15 | O9: =SUM(O5:O8) -> 17.55 | P9: =SUM(P5:P8) -> 9.45
J10: =J8+J7+J6 -> 203.56875
A12: CATALOGO DE CONCEPTOS DE CISTERNA DE CONCRETO ARMADO
A13: CLAVE | B13: DESCRIPCION | C13: U | D13: CANT. T | E13: LARGO | F13: ANCHO | G13: ALTO | H13: PZA | I13: SUB TOTAL
A33: CISTERNA DE LADRILLO O BLOCK
B34: DATOS BASICOS
B35: LARGO | C35: 1.8 | D35: ANCHO | E35: 2 | F35: PRFO. | G35: 2.2 | H35: TOTAL M3 | I35: =G35*E35*C35 -> 7.92
C36: Capacidad real | E36: =((C35-0.3)*(E35-0.3)*(G35-0.5)) -> 4.335
A37: CLAVE | B37: DESCRIPCION | C37: U | D37: CANT. T | E37: LARGO | F37: ANCHO | G37: ALTO | H37: PZA | I37: SUB TOTAL
A38: LT01 | B38: LIMPEZA DE TERRENO DE MATERIALES VEGETALES RETIRANMDO UNA CAPA PROMEDIO DE 20 CMS | C38: M3 | D38: =I38 -> 0.72 | E38: =$C$35 -> 1.8 | F38: =$E$35 -> 2 | G38: 0.2 | I38: =E38*F38*G38 -> 0.72
A39: TRA01 | B39: TRAZO DE TERRENO PARA LOCALIZA EJES CONSTRUCTIVOS POR MEDIOS MANUALES CON HILO Y MANGUERA | C39: M2 | D39: =I39 -> 3.6 | E39: =$C$35 -> 1.8 | F39: =$E$35 -> 2 | I39: =E39*F39 -> 3.6
A40: EXC01 | B40: EXCAVACION EN TERRENO TIPO 2 POR MEDIOS MECANICOS(RETROEXCAVADORA) HASTA UNA PROFUNDIDAD DE 2.5 M | C40: M3 | D40: =I40 -> 7.92 | E40: =$C$35 -> 1.8 | F40: =$E$35 -> 2 | G40: =G35 -> 2.2 | I40: =E40*F40*G40 -> 7.92
A41: PANTILLA | B41: PLATILLA DE CONCRETO SIMPLE F?C= 100 KG /CM2 ESPESOR PROMEDIO DE 5 CMS | C41: M2 | D41: =I41 -> 3.6 | E41: =$C$35 -> 1.8 | F41: =$E$35 -> 2 | I41: =E41*F41 -> 3.6
A42: MALLA | B42: LOSA DE CIMENETACION A BASE DE MALLA 10-10/10-10 Y CONCRETO F'C= 200 KG/CM2 EN UN ESPESOR PROMEDIO DE 10 CMS | C42: M2 | D42: =I42 -> 3.6 | E42: =$C$35 -> 1.8 | F42: =$E$35 -> 2 | I42: =E42*F42 -> 3.6
A43: CADENAS | B43: CADENAS DE DESPLANTE PARA MUROS DE 15X20, EN ARMEX Y CONCRETO F'C=150 KG/CM2 | C43: M | D43: =(C35*2)+(E35*2) -> 7.6
A44: CAS01 | B44: CASTILLO DE ARMEX 15X15 Y CONCRETO F'C= 150 KF/CM2 | C44: M | D44: =I44 -> 8.8 | G44: =G40 -> 2.2 | H44: 4 | I44: =H44*G44 -> 8.8
A45: MUR | B45: MUROS DE BLOCK DE 12X20X40 CON REFUERZO HORINZONTAL A CADA 3 HILADAS ACENTADO CON MORTERO CEMENTO ARENA 1:4 | C45: M2 | D45: =D43*(G44-0.4) -> 13.68
A46: REPE | B46: REPELLADO DE MURO CON MORTERO CEMENTO ARENA PROP 1:4 EN 2 CMS PROM | C46: M2 | D46: =D45 -> 13.68
A47: PULI | B47: PULIDO DE CEMENTO SOBRE REPELLA EN MUROS | C47: M2 | D47: =D46 -> 13.68
A48: LOSA | B48: ELABORACION DE LOSA A BASE DE VIGUETA Y BOVEDILLA DE 16 CMS DE PERALTE Y REFORZADA CON MALLA 10-10/10-10 Y UNA CAPA DE CAPA DE COMPRESION DE 5 CMS EN CONCRETO F'C= 200 KG/CM2 | C48: M2 | D48: =D41 -> 3.6
